lending/lending_fUSD_20241025
["ID","MTS","AMOUNT","RATE_DAILY","PERIOD"]
[340811648,1729866654154,-291.76699228,0.00053414,2]
[340811649,1729866654164,-500.0,0.00053423,120]
[340811650,1729866654174,-1223.67,0.00053424,120]
[340811651,1729866654184,-500.0,0.00053424,120]
[340811652,1729866654193,-500.0,0.00053424,120]
[340811653,1729866654203,-500.0,0.00053424,120]
[340811654,1729866654212,-500.0,0.00053424,120]
[340811655,1729866654222,-887.29,0.00053424,120]
[340811656,1729866654232,-684.69,0.00053424,120]
[340811657,1729866654241,-500.0,0.00053424,120]
[340811658,1729866654256,-500.0,0.00053424,120]
[340811659,1729866654267,-500.0,0.00053424,120]
[340811660,1729866654277,-500.0,0.00053424,120]
[340811661,1729866654287,-500.0,0.00053424,120]
[340811662,1729866654298,-500.0,0.00053424,120]
[340811663,1729866654311,-500.0,0.00053424,120]
[340811664,1729866654321,-500.0,0.00053424,120]
[340811665,1729866654331,-1603.99,0.00053424,120]
[340811666,1729866654340,-500.0,0.00053424,120]
[340811667,1729866654351,-505.70278627,0.00053424,2]
[340811668,1729866654360,-500.0,0.00053424,120]
[340811669,1729866654371,-1069.19,0.00053424,120]
[340811670,1729866654383,-1219.66,0.00053424,120]
[340811671,1729866654394,-500.0,0.00053424,120]
[340811672,1729866654403,-595.61,0.00053424,120]
[340811673,1729866654413,-803.59,0.00053424,120]
[340811674,1729866654423,-511.03,0.00053424,120]
[340811675,1729866654433,-500.0,0.00053424,120]
[340811676,1729866654443,-500.0,0.00053424,120]
[340811677,1729866654453,-500.0,0.00053424,120]
[340811678,1729866654462,-804.6,0.00053424,120]
[340811679,1729866654472,-500.0,0.00053424,120]
[340811680,1729866654481,-500.0,0.00053424,120]
[340811681,1729866654491,-500.0,0.00053424,120]
[340811682,1729866654504,-500.0,0.00053424,120]
[340811683,1729866654514,-1522.61,0.00053424,120]
[340811684,1729866654523,-681.96,0.00053424,120]
[340811685,1729866654533,-500.0,0.00053424,120]
[340811686,1729866654543,-500.0,0.00053424,120]
[340811687,1729866654553,-1145.82,0.00053424,120]
[340811688,1729866654562,-5122.33,0.00053424,120]
[340811689,1729866654571,-500.0,0.00053424,55]
[340811690,1729866654581,-500.0,0.00053424,120]
[340811691,1729866654591,-500.0,0.00053424,120]
[340811692,1729866654601,-655.32,0.00053424,120]
[340811693,1729866654610,-5230.31,0.00053424,120]
[340811694,1729866654620,-500.0,0.00053424,120]
[340811695,1729866654629,-5000.0,0.00053424,120]
[340811696,1729866654639,-22445.75,0.00053424,120]
[340811697,1729866654648,-500.0,0.00053424,120]
[340811698,1729866654658,-12679.49,0.00053424,120]
[340811699,1729866654668,-500.0,0.00053424,120]
[340811700,1729866654677,-500.0,0.00053424,120]
[340811701,1729866654687,-500.0,0.00053424,120]
[340811702,1729866654697,-1800.42,0.00053424,120]
[340811703,1729866654707,-697.56,0.00053424,120]
[340811704,1729866654717,-500.0,0.00053424,120]
[340811705,1729866654727,-1405.83,0.00053424,120]
[340811706,1729866654737,-3337.84,0.00053424,120]
[340811707,1729866654750,-500.0,0.00053424,120]
[340811708,1729866654759,-500.0,0.00053424,120]
[340811709,1729866654769,-750.8,0.00053424,21]
[340811710,1729866654779,-677.34,0.00053424,7]
[340811711,1729866654788,-776.72,0.00053424,120]
[340811712,1729866654799,-500.0,0.00053424,120]
[340811713,1729866654809,-2347.7,0.00053424,120]
[340811714,1729866654818,-666.05,0.00053424,120]
[340811715,1729866654828,-3048.28,0.00053424,120]
[340811716,1729866654838,-500.0,0.00053424,120]
[340811717,1729866654847,-775.41,0.00053424,120]
[340811718,1729866654857,-500.0,0.00053424,120]
[340811719,1729866654866,-508.09,0.00053424,120]
[340811720,1729866654876,-808.75,0.00053424,120]
[340811721,1729866654885,-1715.75,0.00053424,120]
[340811722,1729866654895,-2038.45,0.00053424,120]
[340811723,1729866654904,-506.23651302,0.00053424,120]
[340811724,1729866654914,-671.69,0.00053424,120]
[340811725,1729866654923,-500.0,0.00053424,120]
[340811726,1729866654934,-315.86689653,0.00053424,7]
[340811727,1729866654945,-1343.15,0.00053424,120]
[340811728,1729866654955,-642.22,0.00053424,120]
[340811729,1729866654965,-800.27,0.00053424,120]
[340811730,1729866654975,-500.0,0.00053424,120]
[340811731,1729866654985,-1556.19,0.00053424,120]
[340811732,1729866654996,-1834.7,0.00053424,120]
[340811733,1729866655005,-1599.54,0.00053424,120]
[340811734,1729866655015,-500.0,0.00053424,120]
[340811735,1729866655025,-500.0,0.00053424,120]
[340811736,1729866655035,-6179.67,0.00053424,120]
[340811737,1729866655045,-500.0,0.00053424,120]
[340811738,1729866655055,-2258.98,0.00053424,4]
[340811739,1729866655065,-500.0,0.00053424,2]
[340811740,1729866655074,-612.92669596,0.00053424,120]
[340811741,1729866655085,-612.9,0.00053424,120]
[340811742,1729866655095,-500.0,0.00053424,120]
[340811743,1729866655104,-2922.63,0.00053424,120]
[340811744,1729866655114,-500.0,0.00053424,120]
[340811745,1729866655125,-500.0,0.00053424,120]
[340811746,1729866655135,-500.0,0.00053424,120]
[340811747,1729866655145,-500.0,0.00053424,120]
[340811748,1729866655154,-3301.62,0.00053424,120]
[340811749,1729866655163,-1319.19,0.00053424,120]
[340811750,1729866655173,-2091.41,0.00053424,120]
[340811751,1729866655183,-500.0,0.00053424,120]
[340811752,1729866655192,-518.84,0.00053424,120]
[340811753,1729866655202,-500.0,0.00053424,120]
[340811754,1729866655211,-465.81778756,0.00053424,120]
[340811755,1729866655221,-200.0,0.00053621,15]
[340811756,1729866655231,-500.0,0.00053649,60]
[340811757,1729866655240,-1677.3564558,0.00053661,2]
[340811758,1729866655252,-2037.2772079,0.00053661,2]
[340811759,1729866655262,-2576.1084709,0.00053661,2]
[340811760,1729866655272,-700.0,0.00053662,60]
[340811761,1729866655282,-500.0,0.00053697,120]
[340811762,1729866655291,-1223.67,0.00053698,120]
[340811763,1729866655304,-500.0,0.00053698,120]
[340811764,1729866655313,-500.0,0.00053698,120]
[340811765,1729866655323,-500.0,0.00053698,120]
[340811766,1729866655332,-500.0,0.00053698,120]
[340811767,1729866655342,-887.29,0.00053698,120]
[340811768,1729866655351,-684.69,0.00053698,120]
[340811769,1729866655359,-500.0,0.00053698,120]
[340811770,1729866655369,-500.0,0.00053698,120]
[340811771,1729866655378,-500.0,0.00053698,120]
[340811772,1729866655388,-500.0,0.00053698,120]
[340811773,1729866655398,-500.0,0.00053698,120]
[340811774,1729866655408,-500.0,0.00053698,120]
[340811775,1729866655418,-500.0,0.00053698,120]
[340811776,1729866655427,-500.0,0.00053698,120]
[340811777,1729866655437,-1603.99,0.00053698,120]
[340811778,1729866655446,-500.0,0.00053698,120]
[340811779,1729866655456,-500.0,0.00053698,120]
[340811780,1729866655465,-1069.19,0.00053698,120]
[340811781,1729866655474,-1219.66,0.00053698,120]
[340811782,1729866655484,-500.0,0.00053698,120]
[340811783,1729866655495,-595.61,0.00053698,120]
[340811784,1729866655505,-803.59,0.00053698,120]
[340811785,1729866655515,-511.03,0.00053698,120]
[340811786,1729866655525,-500.0,0.00053698,120]
[340811787,1729866655534,-500.0,0.00053698,120]
[340811788,1729866655545,-500.0,0.00053698,120]
[340811789,1729866655554,-804.6,0.00053698,120]
[340811790,1729866655564,-500.0,0.00053698,120]
[340811791,1729866655573,-500.0,0.00053698,120]
[340811792,1729866655583,-500.0,0.00053698,120]
[340811793,1729866655593,-681.96,0.00053698,120]
[340811794,1729866655602,-1522.61,0.00053698,120]
[340811795,1729866655612,-500.0,0.00053698,120]
[340811796,1729866655621,-500.0,0.00053698,120]
[340811797,1729866655630,-1145.82,0.00053698,120]
[340811798,1729866655640,-5122.33,0.00053698,120]
[340811799,1729866655649,-500.0,0.00053698,55]
[340811800,1729866655659,-500.0,0.00053698,120]
[340811801,1729866655668,-500.0,0.00053698,120]
[340811802,1729866655678,-655.32,0.00053698,120]
[340811803,1729866655688,-5230.31,0.00053698,120]
[340811804,1729866655698,-500.0,0.00053698,120]
[340811805,1729866655707,-5000.0,0.00053698,120]
[340811806,1729866655716,-22445.75,0.00053698,120]
[340811807,1729866655726,-500.0,0.00053698,120]
[340811808,1729866655736,-12679.49,0.00053698,120]
[340811809,1729866655745,-500.0,0.00053698,120]
[340811810,1729866655754,-500.0,0.00053698,120]
[340811811,1729866655764,-500.0,0.00053698,120]
[340811812,1729866655774,-1800.42,0.00053698,120]
[340811813,1729866655784,-697.56,0.00053698,120]
[340811814,1729866655794,-500.0,0.00053698,120]
[340811815,1729866655804,-3337.84,0.00053698,120]
[340811816,1729866655814,-1405.83,0.00053698,120]
[340811817,1729866655824,-500.0,0.00053698,120]
[340811818,1729866655833,-500.0,0.00053698,120]
[340811819,1729866655843,-750.8,0.00053698,21]
[340811820,1729866655953,-677.34,0.00053698,7]
[340811821,1729866655963,-776.72,0.00053698,120]
[340811822,1729866655974,-500.0,0.00053698,120]
[340811823,1729866655983,-2347.7,0.00053698,120]
[340811824,1729866655993,-666.05,0.00053698,120]
[340811825,1729866656004,-3048.28,0.00053698,120]
[340811826,1729866656013,-500.0,0.00053698,120]
[340811827,1729866656023,-775.41,0.00053698,120]
[340811828,1729866656033,-500.0,0.00053698,120]
[340811829,1729866656043,-508.09,0.00053698,120]
[340811830,1729866656053,-808.75,0.00053698,120]
[340811831,1729866656063,-1715.75,0.00053698,120]
[340811832,1729866656074,-2038.45,0.00053698,120]
[340811833,1729866656084,-671.69,0.00053698,120]
[340811834,1729866656094,-500.0,0.00053698,120]
[340811835,1729866656104,-1343.15,0.00053698,120]
[340811836,1729866656114,-642.22,0.00053698,120]
[340811837,1729866656123,-800.27,0.00053698,120]
[340811838,1729866656133,-500.0,0.00053698,120]
[340811839,1729866656143,-1556.19,0.00053698,120]
[340811840,1729866656153,-1834.7,0.00053698,120]
[340811841,1729866656162,-1599.54,0.00053698,120]
[340811842,1729866656172,-500.0,0.00053698,120]
[340811843,1729866656182,-500.0,0.00053698,120]
[340811844,1729866656192,-6179.67,0.00053698,120]
[340811845,1729866656202,-500.0,0.00053698,120]
[340811846,1729866656212,-2258.98,0.00053698,4]
[340811847,1729866656222,-510.71362825,0.00053698,2]
[340811848,1729866656232,-612.9,0.00053698,120]
[340811849,1729866656242,-500.0,0.00053698,120]
[340811850,1729866656255,-2922.63,0.00053698,120]
[340811851,1729866656266,-500.0,0.00053698,120]
[340811852,1729866656276,-500.0,0.00053698,120]
[340811853,1729866656285,-500.0,0.00053698,120]
[340811854,1729866656295,-500.0,0.00053698,120]
[340811855,1729866656308,-3301.62,0.00053698,120]
[340811856,1729866656317,-1319.19,0.00053698,120]
[340811857,1729866656327,-2091.41,0.00053698,120]
[340811858,1729866656336,-500.0,0.00053698,120]
[340811859,1729866656347,-518.84,0.00053698,120]
[340811860,1729866656356,-500.0,0.00053698,120]
[340811861,1729866656366,-150.0,0.00053699,60]
[340811862,1729866656375,-150.0,0.00053699,60]
[340811863,1729866656385,-150.0,0.00053699,60]
[340811864,1729866656394,-150.0,0.00053699,60]
[340811865,1729866656404,-150.0,0.00053699,60]
[340811866,1729866656414,-998.64,0.0005372,120]
[340811867,1729866656423,-392.80383529,0.00053771,2]
[340811868,1729866656432,-800.0,0.00053885,60]
[340811869,1729866656442,-500.0,0.00053886,60]
[340811870,1729866656451,-500.0,0.00053898,60]
[340811871,1729866656461,-1223.67,0.00053972,120]
[340811872,1729866656470,-500.0,0.00053972,120]
[340811873,1729866656480,-500.0,0.00053972,120]
[340811874,1729866656489,-500.0,0.00053972,120]
[340811875,1729866656502,-321.6886456,0.00053972,120]
[340811876,1729866656511,-887.29,0.00053972,120]
[340811877,1729866656521,-684.69,0.00053972,120]
[340811878,1729866656531,-500.0,0.00053972,120]
[340811879,1729866656541,-500.0,0.00053972,120]
[340811880,1729866656550,-500.0,0.00053972,120]
[340811881,1729866656560,-500.0,0.00053972,120]
[340811882,1729866656569,-500.0,0.00053972,120]
[340811883,1729866656579,-601.97038,0.00053972,120]
[340811884,1729866656590,-500.0,0.00053972,120]
[340811885,1729866656600,-500.0,0.00053972,120]
[340811886,1729866656610,-1603.99,0.00053972,120]
[340811887,1729866656620,-500.0,0.00053972,120]
[340811888,1729866656631,-500.0,0.00053972,120]
[340811889,1729866656640,-1069.19,0.00053972,120]
[340811890,1729866656650,-1219.66,0.00053972,120]
[340811891,1729866656659,-500.0,0.00053972,120]
[340811892,1729866656670,-595.61,0.00053972,120]
[340811893,1729866656680,-803.59,0.00053972,120]
[340811894,1729866656689,-511.03,0.00053972,120]
[340811895,1729866656699,-451.57661202,0.00053972,120]
[340811896,1729866656709,-500.0,0.00053972,120]
[340811897,1729866656718,-500.0,0.00053972,120]
[340811898,1729866656728,-804.6,0.00053972,120]
[340811899,1729866656738,-178.59817668,0.00053972,120]
[340811900,1729866656748,-500.0,0.00053972,120]
[340811901,1729866656758,-500.0,0.00053972,120]
[340811902,1729866656768,-681.96,0.00053972,120]
[340811903,1729866656778,-1522.61,0.00053972,120]
[340811904,1729866656787,-500.0,0.00053972,120]
[340811905,1729866656797,-500.0,0.00053972,120]
[340811906,1729866656807,-1145.82,0.00053972,120]
[340811907,1729866656816,-5122.33,0.00053972,120]
[340811908,1729866656825,-500.0,0.00053972,55]
[340811909,1729866656835,-500.0,0.00053972,120]
[340811910,1729866656845,-500.0,0.00053972,120]
[340811911,1729866656854,-655.32,0.00053972,120]
[340811912,1729866656864,-5230.31,0.00053972,120]
[340811913,1729866656872,-500.0,0.00053972,120]
[340811914,1729866656882,-5000.0,0.00053972,120]
[340811915,1729866656892,-22445.75,0.00053972,120]
[340811916,1729866656902,-500.0,0.00053972,120]
[340811917,1729866656912,-12679.49,0.00053972,120]
[340811918,1729866656921,-500.0,0.00053972,120]
[340811919,1729866656930,-500.0,0.00053972,120]
[340811920,1729866656940,-500.0,0.00053972,120]
[340811921,1729866656950,-1800.42,0.00053972,120]
[340811922,1729866656960,-697.56,0.00053972,120]
[340811923,1729866656970,-500.0,0.00053972,120]
[340811924,1729866656981,-3337.84,0.00053972,120]
[340811925,1729866656993,-1405.83,0.00053972,120]
[340811926,1729866657005,-500.0,0.00053972,120]
[340811927,1729866657014,-500.0,0.00053972,120]
[340811928,1729866657024,-750.8,0.00053972,21]
[340811929,1729866657033,-677.34,0.00053972,7]
[340811930,1729866657042,-776.72,0.00053972,120]
[340811931,1729866657052,-500.0,0.00053972,120]
[340811932,1729866657063,-2347.7,0.00053972,120]
[340811933,1729866657072,-666.05,0.00053972,120]
[340811934,1729866657082,-3048.28,0.00053972,120]
[340811935,1729866657092,-500.0,0.00053972,120]
[340811936,1729866657102,-775.41,0.00053972,120]
[340811937,1729866657112,-500.0,0.00053972,120]
[340811938,1729866657122,-508.09,0.00053972,120]
[340811939,1729866657132,-808.75,0.00053972,120]
[340811940,1729866657142,-1715.75,0.00053972,120]
[340811941,1729866657152,-2038.45,0.00053972,120]
[340811942,1729866657162,-671.69,0.00053972,120]
[340811943,1729866657172,-500.0,0.00053972,120]
[340811944,1729866657182,-1343.15,0.00053972,120]
[340811945,1729866657191,-642.22,0.00053972,120]
[340811946,1729866657200,-800.27,0.00053972,120]
[340811947,1729866657210,-500.0,0.00053972,120]
[340811948,1729866657220,-1556.19,0.00053972,120]
[340811949,1729866657230,-1834.7,0.00053972,120]
[340811950,1729866657241,-1599.54,0.00053972,120]
[340811951,1729866657252,-500.0,0.00053972,120]
[340811952,1729866657263,-169.92209283,0.00053972,120]
[340811953,1729866657273,-6179.67,0.00053972,120]
[340811954,1729866657283,-500.0,0.00053972,120]
[340811955,1729866657293,-2258.98,0.00053972,4]
[340811956,1729866657307,-612.9,0.00053972,120]
[340811957,1729866657316,-500.0,0.00053972,120]
[340811958,1729866657326,-2922.63,0.00053972,120]
[340811959,1729866657336,-414.67461764,0.00053972,120]
[340811960,1729866657347,-500.0,0.00053972,120]
[340811961,1729866657357,-500.0,0.00053972,120]
[340811962,1729866657367,-500.0,0.00053972,120]
[340811963,1729866657378,-3301.62,0.00053972,120]
[340811964,1729866657388,-1319.19,0.00053972,120]
[340811965,1729866657397,-2091.41,0.00053972,120]
[340811966,1729866657407,-500.0,0.00053972,120]
[340811967,1729866657416,-518.84,0.00053972,120]
[340811968,1729866657425,-500.0,0.00053972,120]
[340811969,1729866657435,-500.0,0.00053997,60]
[340811970,1729866657445,-1000.0,0.00054,2]
[340811971,1729866657455,-30000.0,0.00054,120]
[340811972,1729866657464,-317.98,0.00054,120]
[340811973,1729866657474,-500.0,0.00054066,60]
[340811974,1729866657484,-800.0,0.00054217,60]
[340811975,1729866657495,-500.0,0.00054245,120]
[340811976,1729866657505,-1223.67,0.00054246,120]
[340811977,1729866657515,-500.0,0.00054246,120]
[340811978,1729866657617,-500.0,0.00054246,120]
[340811979,1729866657629,-500.0,0.00054246,120]
[340811980,1729866657639,-887.29,0.00054246,120]
[340811981,1729866657648,-684.69,0.00054246,120]
[340811982,1729866657658,-500.0,0.00054246,120]
[340811983,1729866657668,-500.0,0.00054246,120]
[340811984,1729866657678,-500.0,0.00054246,120]
[340811985,1729866657687,-500.0,0.00054246,120]
[340811986,1729866657697,-500.0,0.00054246,120]
[340811987,1729866657707,-500.00485332,0.00054246,120]
[340811988,1729866657717,-500.0,0.00054246,120]
[340811989,1729866657727,-1603.99,0.00054246,120]
[340811990,1729866657736,-500.0,0.00054246,120]
[340811991,1729866657745,-500.0,0.00054246,120]
[340811992,1729866657756,-1069.19,0.00054246,120]
[340811993,1729866657766,-1219.66,0.00054246,120]
[340811994,1729866657776,-500.0,0.00054246,120]
[340811995,1729866657786,-595.61,0.00054246,120]
[340811996,1729866657796,-803.59,0.00054246,120]
[340811997,1729866657806,-511.03,0.00054246,120]
[340811998,1729866657816,-500.0,0.00054246,120]
[340811999,1729866657826,-500.0,0.00054246,120]
[340812000,1729866657836,-804.6,0.00054246,120]
[340812001,1729866657846,-500.0,0.00054246,120]
[340812002,1729866657856,-500.0,0.00054246,120]
[340812003,1729866657865,-681.96,0.00054246,120]
[340812004,1729866657874,-1522.61,0.00054246,120]
[340812005,1729866657883,-596.38652665,0.00054246,120]
[340812006,1729866657893,-500.0,0.00054246,120]
[340812007,1729866657903,-1145.82,0.00054246,120]
[340812008,1729866657913,-5122.33,0.00054246,120]
[340812009,1729866657923,-500.0,0.00054246,55]
[340812010,1729866657932,-500.0,0.00054246,120]
[340812011,1729866657942,-500.0,0.00054246,120]
[340812012,1729866657951,-655.32,0.00054246,120]
[340812013,1729866657960,-5230.31,0.00054246,120]
[340812014,1729866657971,-500.0,0.00054246,120]
[340812015,1729866657980,-5000.0,0.00054246,120]
[340812016,1729866657990,-22445.75,0.00054246,120]
[340812017,1729866658001,-443.00267624,0.00054246,120]
[340812018,1729866658014,-12679.49,0.00054246,120]
[340812019,1729866658024,-500.0,0.00054246,120]
[340812020,1729866658033,-500.0,0.00054246,120]
[340812021,1729866658044,-500.0,0.00054246,120]
[340812022,1729866658054,-1800.42,0.00054246,120]
[340812023,1729866658063,-697.56,0.00054246,120]
[340812024,1729866658073,-500.0,0.00054246,120]
[340812025,1729866658083,-3337.84,0.00054246,120]
[340812026,1729866658093,-1405.83,0.00054246,120]
[340812027,1729866658102,-500.0,0.00054246,120]
[340812028,1729866658112,-235.45851387,0.00054246,120]
[340812029,1729866658121,-750.8,0.00054246,21]
[340812030,1729866658131,-677.34,0.00054246,7]
[340812031,1729866658141,-776.72,0.00054246,120]
[340812032,1729866658151,-500.0,0.00054246,120]
[340812033,1729866658160,-2347.7,0.00054246,120]
[340812034,1729866658170,-666.05,0.00054246,120]
[340812035,1729866658181,-3048.28,0.00054246,120]
[340812036,1729866658191,-500.0,0.00054246,120]
[340812037,1729866658202,-775.41,0.00054246,120]
[340812038,1729866658211,-500.0,0.00054246,120]
[340812039,1729866658221,-508.09,0.00054246,120]
[340812040,1729866658231,-808.75,0.00054246,120]
[340812041,1729866658241,-1715.75,0.00054246,120]
[340812042,1729866658252,-2038.45,0.00054246,120]
[340812043,1729866658261,-671.69,0.00054246,120]
[340812044,1729866658271,-500.0,0.00054246,120]
[340812045,1729866658281,-1343.15,0.00054246,120]
[340812046,1729866658291,-642.22,0.00054246,120]
[340812047,1729866658304,-800.27,0.00054246,120]
[340812048,1729866658313,-517.78689816,0.00054246,120]
[340812049,1729866658323,-1556.19,0.00054246,120]
[340812050,1729866658333,-1834.7,0.00054246,120]
[340812051,1729866658342,-1599.54,0.00054246,120]
[340812052,1729866658352,-500.0,0.00054246,120]
[340812053,1729866658362,-6179.67,0.00054246,120]
[340812054,1729866658372,-426.0128346,0.00054246,120]
[340812055,1729866658382,-2258.98,0.00054246,4]
[340812056,1729866658392,-612.9,0.00054246,120]
[340812057,1729866658402,-500.0,0.00054246,120]
[340812058,1729866658412,-2922.63,0.00054246,120]
[340812059,1729866658422,-500.0,0.00054246,120]
[340812060,1729866658431,-500.0,0.00054246,120]
[340812061,1729866658441,-500.0,0.00054246,120]
[340812062,1729866658451,-3301.62,0.00054246,120]
[340812063,1729866658461,-1319.19,0.00054246,120]
[340812064,1729866658471,-2091.41,0.00054246,120]
[340812065,1729866658481,-500.0,0.00054246,120]
[340812066,1729866658491,-518.84,0.00054246,120]
[340812067,1729866658503,-500.0,0.00054246,120]
[340812068,1729866658512,-2373.58934159,0.00054256,15]
[340812069,1729866658522,-900.0,0.00054374,60]
[340812070,1729866658532,-2020.6823815,0.00054483,2]
[340812071,1729866658542,-2459.0309092,0.00054483,2]
[340812072,1729866658551,-3109.4101142,0.00054483,2]
[340812073,1729866658561,-1223.67,0.0005452,120]
[340812074,1729866658570,-500.0,0.0005452,120]
[340812075,1729866658579,-500.0,0.0005452,120]
[340812076,1729866658590,-500.0,0.0005452,120]
[340812077,1729866658599,-887.29,0.0005452,120]
[340812078,1729866658609,-684.69,0.0005452,120]
[340812079,1729866658619,-500.0,0.0005452,120]
[340812080,1729866658628,-500.0,0.0005452,120]
[340812081,1729866658638,-500.0,0.0005452,120]
[340812082,1729866658647,-500.0,0.0005452,120]
[340812083,1729866658658,-500.0,0.0005452,120]
[340812084,1729866658668,-500.0,0.0005452,120]
[340812085,1729866658678,-1603.99,0.0005452,120]
[340812086,1729866658687,-500.0,0.0005452,120]
[340812087,1729866658697,-340.78547134,0.0005452,120]
[340812088,1729866658707,-1069.19,0.0005452,120]
[340812089,1729866658717,-1219.66,0.0005452,120]
[340812090,1729866658727,-500.0,0.0005452,120]
[340812091,1729866658736,-595.61,0.0005452,120]
[340812092,1729866658746,-803.59,0.0005452,120]
[340812093,1729866658757,-511.03,0.0005452,120]
[340812094,1729866658767,-500.0,0.0005452,120]
[340812095,1729866658776,-500.0,0.0005452,120]
[340812096,1729866658786,-804.6,0.0005452,120]
[340812097,1729866658796,-500.0,0.0005452,120]
[340812098,1729866658805,-500.0,0.0005452,120]
[340812099,1729866658814,-681.96,0.0005452,120]
[340812100,1729866658824,-1522.61,0.0005452,120]
[340812101,1729866658834,-500.0,0.0005452,120]
[340812102,1729866658844,-1145.82,0.0005452,120]
[340812103,1729866658853,-5122.33,0.0005452,120]
[340812104,1729866658862,-500.0,0.0005452,55]
[340812105,1729866658871,-500.0,0.0005452,120]
[340812106,1729866658881,-500.0,0.0005452,120]
[340812107,1729866658890,-655.32,0.0005452,120]
[340812108,1729866658901,-5230.31,0.0005452,120]
[340812109,1729866658910,-500.0,0.0005452,120]
[340812110,1729866658919,-5000.0,0.0005452,120]
[340812111,1729866658928,-22445.75,0.0005452,120]
[340812112,1729866658938,-12679.49,0.0005452,120]
[340812113,1729866658947,-500.0,0.0005452,120]
[340812114,1729866658957,-500.0,0.0005452,120]
[340812115,1729866658968,-800.0,0.0005452,60]
[340812116,1729866658978,-500.0,0.0005452,120]
[340812117,1729866658987,-1800.42,0.0005452,120]
[340812118,1729866658998,-697.56,0.0005452,120]
[340812119,1729866659008,-500.0,0.0005452,120]
[340812120,1729866659018,-3337.84,0.0005452,120]
[340812121,1729866659027,-1405.83,0.0005452,120]
[340812122,1729866659037,-500.0,0.0005452,120]
[340812123,1729866659047,-750.8,0.0005452,21]
[340812124,1729866659146,-677.34,0.0005452,7]
[340812125,1729866659156,-776.72,0.0005452,120]
[340812126,1729866659166,-500.0,0.0005452,120]
[340812127,1729866659176,-2347.7,0.0005452,120]
[340812128,1729866659187,-666.05,0.0005452,120]
[340812129,1729866659196,-3048.28,0.0005452,120]
[340812130,1729866659206,-500.0,0.0005452,120]
[340812131,1729866659216,-775.41,0.0005452,120]
[340812132,1729866659226,-584.71490834,0.0005452,120]
[340812133,1729866659239,-508.09,0.0005452,120]
[340812134,1729866659249,-808.75,0.0005452,120]
[340812135,1729866659259,-1715.75,0.0005452,120]
[340812136,1729866659269,-2038.45,0.0005452,120]
[340812137,1729866659280,-671.69,0.0005452,120]
[340812138,1729866659290,-500.0,0.0005452,120]
[340812139,1729866659302,-1343.15,0.0005452,120]
[340812140,1729866659312,-642.22,0.0005452,120]
[340812141,1729866659322,-800.27,0.0005452,120]
[340812142,1729866659332,-1556.19,0.0005452,120]
[340812143,1729866659343,-1834.7,0.0005452,120]
[340812144,1729866659353,-1599.54,0.0005452,120]
[340812145,1729866659363,-500.0,0.0005452,120]
[340812146,1729866659373,-6179.67,0.0005452,120]
[340812147,1729866659385,-2258.98,0.0005452,4]